[Event "Titled Tuesday Blitz September 28 2021"]
[White "Florescu, Codrut-Constantin"]
[Black "Lukovic, Vladimir"]
[WhiteFideId "1202200"]
[BlackFideId "942952"]
[WhiteElo "2243"]
[BlackElo "2436"]
[Result "0-1"]
[Round "04"]
[TimeControl "180+1"]
[Date "2021.09.28"]
[WhiteClock "0:01:25"]
[BlackClock "0:00:58"]

1. e4 {[%clk 0:03:00]}  e6 {[%clk 0:02:59]} 2. d4 {[%clk 0:02:59]}  d5 {[%clk 0:02:59]} 3. e5 {[%clk 0:02:59]}  c5 {[%clk 0:02:59]} 4. c3 {[%clk 0:03:00]}  Nc6 {[%clk 0:02:59]} 5. Nf3 {[%clk 0:03:01]}  Qb6 {[%clk 0:02:59]} 6. Na3 {[%clk 0:03:01]}  Bd7 {[%clk 0:02:56]} 7. Nc2 {[%clk 0:03:00]}  Nge7 {[%clk 0:02:52]} 8. Bd3 {[%clk 0:02:59]}  cxd4 {[%clk 0:02:51]} 9. cxd4 {[%clk 0:02:58]}  Nf5 {[%clk 0:02:51]} 10. Bxf5 {[%clk 0:02:58]}  exf5 {[%clk 0:02:52]} 11. O-O {[%clk 0:02:58]}  Be7 {[%clk 0:02:49]} 12. Bg5 {[%clk 0:02:57]}  Bf8 {[%clk 0:02:46]} 13. h4 {[%clk 0:02:41]}  h6 {[%clk 0:02:46]} 14. Be3 {[%clk 0:02:41]}  Be7 {[%clk 0:02:46]} 15. a3 {[%clk 0:02:39]}  Nd8 {[%clk 0:02:39]} 16. b4 {[%clk 0:02:38]}  Ne6 {[%clk 0:02:38]} 17. Rc1 {[%clk 0:02:32]}  g5 {[%clk 0:02:34]} 18. Na1 {[%clk 0:02:22]}  g4 {[%clk 0:02:26]} 19. Ne1 {[%clk 0:02:18]}  Bb5 {[%clk 0:02:00]} 20. Nd3 {[%clk 0:02:11]}  Qa6 {[%clk 0:01:58]} 21. Nc5 {[%clk 0:02:02]}  Nxc5 {[%clk 0:01:45]} 22. dxc5 {[%clk 0:02:01]}  Bxf1 {[%clk 0:01:44]} 23. Qxf1 {[%clk 0:01:58]}  Qxf1+ {[%clk 0:01:44]} 24. Kxf1 {[%clk 0:01:56]}  Bxh4 {[%clk 0:01:44]} 25. Nb3 {[%clk 0:01:51]}  Bg5 {[%clk 0:01:43]} 26. Ke2 {[%clk 0:01:47]}  f4 {[%clk 0:01:39]} 27. Bd2 {[%clk 0:01:47]}  O-O {[%clk 0:01:34]} 28. f3 {[%clk 0:01:46]}  Rae8 {[%clk 0:01:31]} 29. fxg4 {[%clk 0:01:43]}  Rxe5+ {[%clk 0:01:30]} 30. Kf3 {[%clk 0:01:42]}  Re4 {[%clk 0:01:26]} 31. b5 {[%clk 0:01:35]}  Rc4 {[%clk 0:01:10]} 32. Rxc4 {[%clk 0:01:34]}  dxc4 {[%clk 0:01:10]} 33. Na5 {[%clk 0:01:35]}  Rd8 {[%clk 0:01:02]} 34. Bb4 {[%clk 0:01:35]}  b6 {[%clk 0:01:00]} 35. Nxc4 {[%clk 0:01:32]}  bxc5 {[%clk 0:00:59]} 36. Ba5 {[%clk 0:01:25]}  Rd3+ {[%clk 0:00:58]} 37. Ke4 {[%clk 0:01:25]}  Rd4+ {[%clk 0:00:58]} 0-1


[Site "https://www.chess.com"]

[Event "Titled Tuesday Blitz September 28 2021"]
[White "Gelman, Alexander"]
[Black "Ibrahimli, Murad"]
[WhiteFideId "4118316"]
[BlackFideId "13410229"]
[WhiteElo "2375"]
[BlackElo "2109"]
[Result "0-1"]
[Round "04"]
[TimeControl "180+1"]
[Date "2021.09.28"]
[WhiteClock "0:00:34"]
[BlackClock "0:00:28"]

1. d4 {[%clk 0:03:00]}  Nf6 {[%clk 0:02:59]} 2. Nc3 {[%clk 0:03:01]}  d5 {[%clk 0:02:58]} 3. Bf4 {[%clk 0:03:01]}  a6 {[%clk 0:02:54]} 4. e3 {[%clk 0:03:01]}  Nbd7 {[%clk 0:02:42]} 5. g4 {[%clk 0:02:59]}  h6 {[%clk 0:02:41]} 6. h4 {[%clk 0:02:58]}  Nb6 {[%clk 0:02:36]} 7. f3 {[%clk 0:02:51]}  e6 {[%clk 0:02:30]} 8. Qd2 {[%clk 0:02:19]}  Bd6 {[%clk 0:02:26]} 9. O-O-O {[%clk 0:02:17]}  Bd7 {[%clk 0:02:17]} 10. Rh2 {[%clk 0:02:15]}  Bb5 {[%clk 0:02:14]} 11. Bd3 {[%clk 0:02:10]}  Bxd3 {[%clk 0:02:12]} 12. cxd3 {[%clk 0:02:11]}  Bxf4 {[%clk 0:02:12]} 13. exf4 {[%clk 0:02:11]}  Qd6 {[%clk 0:02:11]} 14. Kb1 {[%clk 0:02:10]}  O-O-O {[%clk 0:02:09]} 15. Nge2 {[%clk 0:02:07]}  Kb8 {[%clk 0:02:09]} 16. Qe3 {[%clk 0:02:07]}  h5 {[%clk 0:02:04]} 17. Rg1 {[%clk 0:01:49]}  g6 {[%clk 0:01:44]} 18. Qe5 {[%clk 0:01:47]}  Nbd7 {[%clk 0:01:43]} 19. Qe3 {[%clk 0:01:45]}  Rh7 {[%clk 0:01:39]} 20. Nc1 {[%clk 0:01:28]}  Rdh8 {[%clk 0:01:38]} 21. g5 {[%clk 0:01:28]}  Ne8 {[%clk 0:01:38]} 22. N3e2 {[%clk 0:01:21]}  Ng7 {[%clk 0:01:37]} 23. Ng3 {[%clk 0:01:21]}  Rc8 {[%clk 0:01:30]} 24. Nb3 {[%clk 0:01:21]}  Rhh8 {[%clk 0:01:28]} 25. Rc2 {[%clk 0:01:21]}  b6 {[%clk 0:01:18]} 26. Rgc1 {[%clk 0:01:21]}  c6 {[%clk 0:01:18]} 27. a3 {[%clk 0:01:15]}  Rc7 {[%clk 0:01:16]} 28. Ka1 {[%clk 0:01:10]}  Rhc8 {[%clk 0:01:15]} 29. Kb1 {[%clk 0:01:10]}  Kb7 {[%clk 0:01:14]} 30. Ka1 {[%clk 0:01:10]}  a5 {[%clk 0:01:14]} 31. Kb1 {[%clk 0:01:09]}  a4 {[%clk 0:01:13]} 32. Nd2 {[%clk 0:01:09]}  c5 {[%clk 0:01:14]} 33. dxc5 {[%clk 0:01:09]}  Rxc5 {[%clk 0:01:13]} 34. d4 {[%clk 0:01:04]}  Rxc2 {[%clk 0:01:09]} 35. Rxc2 {[%clk 0:01:05]}  Rxc2 {[%clk 0:01:02]} 36. Kxc2 {[%clk 0:01:06]}  Qc6+ {[%clk 0:00:57]} 37. Qc3 {[%clk 0:00:56]}  Qb5 {[%clk 0:00:57]} 38. Qd3 {[%clk 0:00:54]}  Qc6+ {[%clk 0:00:47]} 39. Qc3 {[%clk 0:00:54]}  Qd6 {[%clk 0:00:47]} 40. Qe3 {[%clk 0:00:52]}  Nb8 {[%clk 0:00:46]} 41. Nb1 {[%clk 0:00:49]}  Nc6 {[%clk 0:00:28]} 42. Nc3 {[%clk 0:00:49]}  Ne7 {[%clk 0:00:29]} 43. Nxa4 {[%clk 0:00:37]}  Nef5 {[%clk 0:00:28]} 44. Nxf5 {[%clk 0:00:38]}  Nxf5 {[%clk 0:00:29]} 45. Qb3 {[%clk 0:00:34]}  Nxd4+ {[%clk 0:00:28]} 0-1


[Site "https://www.chess.com"]

[Event "Titled Tuesday Blitz September 28 2021"]
[White "Gracia Alvarez, Gerardo Antonio"]
[Black "Baskin, Robert"]
[WhiteFideId "5109124"]
[BlackFideId "24662402"]
[WhiteElo "2148"]
[BlackElo "2521"]
[Result "0-1"]
[Round "04"]
[TimeControl "180+1"]
[Date "2021.09.28"]
[WhiteClock "0:01:02"]
[BlackClock "0:02:13"]

1. e4 {[%clk 0:03:00]}  c5 {[%clk 0:02:59]} 2. Nf3 {[%clk 0:03:00]}  d6 {[%clk 0:02:59]} 3. Bb5+ {[%clk 0:02:59]}  Nd7 {[%clk 0:02:59]} 4. O-O {[%clk 0:02:59]}  a6 {[%clk 0:02:58]} 5. Bd3 {[%clk 0:02:58]}  Ngf6 {[%clk 0:02:58]} 6. Re1 {[%clk 0:02:57]}  e6 {[%clk 0:02:58]} 7. c3 {[%clk 0:02:56]}  b5 {[%clk 0:02:58]} 8. Bc2 {[%clk 0:02:56]}  c4 {[%clk 0:02:58]} 9. b3 {[%clk 0:02:55]}  Bb7 {[%clk 0:02:35]} 10. bxc4 {[%clk 0:02:55]}  bxc4 {[%clk 0:02:32]} 11. Na3 {[%clk 0:02:56]}  Rc8 {[%clk 0:02:22]} 12. Rb1 {[%clk 0:02:56]}  Ba8 {[%clk 0:02:23]} 13. Qe2 {[%clk 0:02:50]}  d5 {[%clk 0:02:23]} 14. exd5 {[%clk 0:02:44]}  Bxd5 {[%clk 0:02:24]} 15. d3 {[%clk 0:01:59]}  cxd3 {[%clk 0:02:25]} 16. Bxd3 {[%clk 0:01:57]}  Rxc3 {[%clk 0:02:24]} 17. Nc4 {[%clk 0:01:43]}  Nc5 {[%clk 0:02:19]} 18. Bd2 {[%clk 0:01:02]}  Rxd3 {[%clk 0:02:17]} 19. Nb6 {[%clk 0:01:01]}  Bxf3 {[%clk 0:02:15]} 20. gxf3 {[%clk 0:01:02]}  Rxd2 {[%clk 0:02:13]} 0-1


[Site "https://www.chess.com"]

[Event "Titled Tuesday Blitz September 28 2021"]
[White "Guliev, Logman"]
[Black "Tsydypov, Zhamsaran"]
[WhiteFideId "13400061"]
[BlackFideId "4108566"]
[WhiteElo "2128"]
[BlackElo "2649"]
[Result "0-1"]
[Round "04"]
[TimeControl "180+1"]
[Date "2021.09.28"]
[WhiteClock "0:00:04"]
[BlackClock "0:01:57"]

1. e4 {[%clk 0:03:00]}  c5 {[%clk 0:02:56]} 2. Nf3 {[%clk 0:03:01]}  d6 {[%clk 0:02:57]} 3. d4 {[%clk 0:03:01]}  cxd4 {[%clk 0:02:57]} 4. Nxd4 {[%clk 0:03:01]}  Nf6 {[%clk 0:02:58]} 5. Nc3 {[%clk 0:03:01]}  a6 {[%clk 0:02:58]} 6. f4 {[%clk 0:03:01]}  Nbd7 {[%clk 0:02:54]} 7. Bd3 {[%clk 0:02:57]}  b5 {[%clk 0:02:54]} 8. O-O {[%clk 0:02:55]}  Bb7 {[%clk 0:02:54]} 9. a3 {[%clk 0:02:50]}  e6 {[%clk 0:02:54]} 10. Kh1 {[%clk 0:02:46]}  Be7 {[%clk 0:02:54]} 11. Qe2 {[%clk 0:02:43]}  O-O {[%clk 0:02:53]} 12. e5 {[%clk 0:02:39]}  dxe5 {[%clk 0:02:52]} 13. fxe5 {[%clk 0:02:39]}  Ne8 {[%clk 0:02:49]} 14. Bf4 {[%clk 0:01:51]}  Nc5 {[%clk 0:02:40]} 15. Rad1 {[%clk 0:01:49]}  Nxd3 {[%clk 0:02:39]} 16. Rxd3 {[%clk 0:01:49]}  Qb6 {[%clk 0:02:39]} 17. Ne4 {[%clk 0:01:45]}  Rd8 {[%clk 0:02:36]} 18. c3 {[%clk 0:01:43]}  Bd5 {[%clk 0:02:27]} 19. Rh3 {[%clk 0:01:37]}  Qb7 {[%clk 0:02:26]} 20. Ng5 {[%clk 0:01:26]}  h6 {[%clk 0:02:23]} 21. Ngf3 {[%clk 0:01:23]}  Bc4 {[%clk 0:02:23]} 22. Qe3 {[%clk 0:01:15]}  f5 {[%clk 0:02:11]} 23. Bxh6 {[%clk 0:01:03]}  Bxf1 {[%clk 0:02:08]} 24. Bxg7 {[%clk 0:00:51]}  f4 {[%clk 0:02:06]} 25. Qf2 {[%clk 0:00:41]}  Nxg7 {[%clk 0:02:05]} 26. Qxf1 {[%clk 0:00:40]}  Qe4 {[%clk 0:02:05]} 27. Nd2 {[%clk 0:00:28]}  Qg6 {[%clk 0:02:02]} 28. Qf3 {[%clk 0:00:28]}  Nf5 {[%clk 0:01:57]} 29. Ne4 {[%clk 0:00:28]}  Nxd4 {[%clk 0:01:57]} 30. cxd4 {[%clk 0:00:28]}  Rxd4 {[%clk 0:01:57]} 31. Nc3 {[%clk 0:00:05]}  b4 {[%clk 0:01:57]} 32. axb4 {[%clk 0:00:04]}  Bxb4 {[%clk 0:01:57]} 0-1


[Site "https://www.chess.com"]

[Event "Titled Tuesday Blitz September 28 2021"]
[White "Indjic, Aleksandar"]
[Black "Garcia Garcia, Alejandro"]
[WhiteFideId "911925"]
[BlackFideId "3516334"]
[WhiteElo "2643"]
[BlackElo "2131"]
[Result "1-0"]
[Round "04"]
[TimeControl "180+1"]
[Date "2021.09.28"]
[WhiteClock "0:01:50"]
[BlackClock "0:01:24"]

1. e4 {[%clk 0:03:00]}  c5 {[%clk 0:02:59]} 2. Nf3 {[%clk 0:03:00]}  e6 {[%clk 0:03:00]} 3. d4 {[%clk 0:03:00]}  cxd4 {[%clk 0:03:01]} 4. Nxd4 {[%clk 0:03:00]}  Nc6 {[%clk 0:03:01]} 5. Nc3 {[%clk 0:03:00]}  Nf6 {[%clk 0:03:00]} 6. a3 {[%clk 0:02:59]}  Be7 {[%clk 0:02:59]} 7. f4 {[%clk 0:02:51]}  d5 {[%clk 0:02:55]} 8. e5 {[%clk 0:02:49]}  Nd7 {[%clk 0:02:48]} 9. Be3 {[%clk 0:02:49]}  O-O {[%clk 0:02:47]} 10. Qd2 {[%clk 0:02:49]}  Nxd4 {[%clk 0:02:45]} 11. Bxd4 {[%clk 0:02:48]}  f6 {[%clk 0:02:45]} 12. exf6 {[%clk 0:02:47]}  Bxf6 {[%clk 0:02:45]} 13. O-O-O {[%clk 0:02:47]}  a6 {[%clk 0:02:36]} 14. g3 {[%clk 0:02:46]}  b5 {[%clk 0:02:36]} 15. Bh3 {[%clk 0:02:43]}  Nb6 {[%clk 0:02:33]} 16. Bxe6+ {[%clk 0:01:59]}  Bxe6 {[%clk 0:02:29]} 17. Qe3 {[%clk 0:01:59]}  Re8 {[%clk 0:01:34]} 18. Bxb6 {[%clk 0:01:57]}  Qd6 {[%clk 0:01:34]} 19. Ne4 {[%clk 0:01:51]}  Bg4 {[%clk 0:01:25]} 20. Nxd6 {[%clk 0:01:49]}  Rxe3 {[%clk 0:01:24]} 21. Bxe3 {[%clk 0:01:50]} 1-0


[Site "https://www.chess.com"]

[Event "Titled Tuesday Blitz September 28 2021"]
[White "Jeet, Jain"]
[Black "Szente Varga, Fruzsina"]
[WhiteFideId "5073022"]
[BlackFideId "712264"]
[WhiteElo "2085"]
[BlackElo "2106"]
[Result "1-0"]
[Round "04"]
[TimeControl "180+1"]
[Date "2021.09.28"]
[WhiteClock "0:00:46"]
[BlackClock "0:00:14"]

1. e4 {[%clk 0:03:00]}  e5 {[%clk 0:02:59]} 2. Nf3 {[%clk 0:03:00]}  Nc6 {[%clk 0:03:00]} 3. Bc4 {[%clk 0:02:59]}  Bc5 {[%clk 0:02:59]} 4. c3 {[%clk 0:02:59]}  Nf6 {[%clk 0:02:53]} 5. d3 {[%clk 0:02:58]}  O-O {[%clk 0:02:51]} 6. Bg5 {[%clk 0:02:57]}  h6 {[%clk 0:02:52]} 7. Bh4 {[%clk 0:02:56]}  Be7 {[%clk 0:02:44]} 8. Nbd2 {[%clk 0:02:56]}  d6 {[%clk 0:02:43]} 9. a4 {[%clk 0:02:56]}  Be6 {[%clk 0:02:35]} 10. O-O {[%clk 0:02:55]}  Nd7 {[%clk 0:02:31]} 11. Bg3 {[%clk 0:02:53]}  Bg4 {[%clk 0:02:18]} 12. a5 {[%clk 0:02:52]}  a6 {[%clk 0:02:04]} 13. b4 {[%clk 0:02:51]}  Kh8 {[%clk 0:01:57]} 14. Qb3 {[%clk 0:02:43]}  f5 {[%clk 0:01:56]} 15. exf5 {[%clk 0:02:27]}  Bxf5 {[%clk 0:01:57]} 16. d4 {[%clk 0:02:19]}  exd4 {[%clk 0:01:55]} 17. cxd4 {[%clk 0:02:18]}  Bf6 {[%clk 0:01:54]} 18. Rad1 {[%clk 0:02:06]}  Nxd4 {[%clk 0:01:42]} 19. Nxd4 {[%clk 0:02:07]}  Bxd4 {[%clk 0:01:43]} 20. Nf3 {[%clk 0:02:03]}  Bf6 {[%clk 0:01:42]} 21. Nd4 {[%clk 0:02:03]}  Bxd4 {[%clk 0:01:32]} 22. Rxd4 {[%clk 0:02:04]}  Qf6 {[%clk 0:01:29]} 23. Rfd1 {[%clk 0:02:00]}  Rae8 {[%clk 0:01:24]} 24. h3 {[%clk 0:01:54]}  Ne5 {[%clk 0:01:24]} 25. Bd5 {[%clk 0:01:51]}  c6 {[%clk 0:01:18]} 26. Bc4 {[%clk 0:01:49]}  d5 {[%clk 0:01:06]} 27. Bf1 {[%clk 0:01:48]}  Nf7 {[%clk 0:00:51]} 28. Qc3 {[%clk 0:01:42]}  Ng5 {[%clk 0:00:49]} 29. Bh4 {[%clk 0:01:33]}  Qg6 {[%clk 0:00:45]} 30. Kh2 {[%clk 0:01:28]}  Ne4 {[%clk 0:00:37]} 31. Qb3 {[%clk 0:01:17]}  Bc8 {[%clk 0:00:33]} 32. f3 {[%clk 0:01:17]}  Qd6+ {[%clk 0:00:27]} 33. Kg1 {[%clk 0:01:12]}  Ng3 {[%clk 0:00:25]} 34. f4 {[%clk 0:01:06]}  Nf5 {[%clk 0:00:22]} 35. Bf2 {[%clk 0:01:03]}  Nxd4 {[%clk 0:00:22]} 36. Bxd4 {[%clk 0:01:00]}  Qxf4 {[%clk 0:00:23]} 37. Qc3 {[%clk 0:00:56]}  Rf7 {[%clk 0:00:21]} 38. Bd3 {[%clk 0:00:54]}  Ref8 {[%clk 0:00:17]} 39. Bg6 {[%clk 0:00:52]}  Rd7 {[%clk 0:00:14]} 40. Bc2 {[%clk 0:00:50]}  Re7 {[%clk 0:00:14]} 41. Bc5 {[%clk 0:00:48]}  Rfe8 {[%clk 0:00:13]} 42. Bxe7 {[%clk 0:00:45]}  Rxe7 {[%clk 0:00:14]} 43. Rf1 {[%clk 0:00:46]}  Qe3+ {[%clk 0:00:13]} 44. Qxe3 {[%clk 0:00:45]}  Rxe3 {[%clk 0:00:14]} 45. Rf8# {[%clk 0:00:46]} 1-0


[Site "https://www.chess.com"]

[Event "Titled Tuesday Blitz September 28 2021"]
[White "Kamsky, Gata"]
[Black "Shimelkov, Vasiliy"]
[WhiteFideId "2000024"]
[BlackFideId "13701630"]
[WhiteElo "2603"]
[BlackElo "2073"]
[Result "1-0"]
[Round "04"]
[TimeControl "180+1"]
[Date "2021.09.28"]
[WhiteClock "0:00:33"]
[BlackClock "0:00:15"]

1. e4 {[%clk 0:03:00]}  c6 {[%clk 0:02:58]} 2. d3 {[%clk 0:02:53]}  d5 {[%clk 0:02:57]} 3. Nf3 {[%clk 0:02:54]}  g6 {[%clk 0:02:53]} 4. g3 {[%clk 0:02:33]}  Bg7 {[%clk 0:02:51]} 5. Bg2 {[%clk 0:02:34]}  e5 {[%clk 0:02:46]} 6. O-O {[%clk 0:02:33]}  Ne7 {[%clk 0:02:45]} 7. Nc3 {[%clk 0:02:32]}  O-O {[%clk 0:02:44]} 8. a4 {[%clk 0:02:19]}  h6 {[%clk 0:02:29]} 9. Bd2 {[%clk 0:02:15]}  Be6 {[%clk 0:02:25]} 10. Qe1 {[%clk 0:02:04]}  Nd7 {[%clk 0:02:21]} 11. Nh4 {[%clk 0:02:03]}  f5 {[%clk 0:02:06]} 12. f4 {[%clk 0:01:43]}  fxe4 {[%clk 0:01:58]} 13. dxe4 {[%clk 0:01:43]}  d4 {[%clk 0:01:54]} 14. Nd1 {[%clk 0:01:38]}  c5 {[%clk 0:01:47]} 15. b3 {[%clk 0:01:37]}  Qc7 {[%clk 0:01:27]} 16. Nb2 {[%clk 0:01:30]}  Kh7 {[%clk 0:01:03]} 17. Kh1 {[%clk 0:01:29]}  b6 {[%clk 0:00:52]} 18. f5 {[%clk 0:01:29]}  gxf5 {[%clk 0:00:47]} 19. exf5 {[%clk 0:01:29]}  Bd5 {[%clk 0:00:47]} 20. Bxd5 {[%clk 0:01:04]}  Nxd5 {[%clk 0:00:45]} 21. g4 {[%clk 0:00:53]}  Rae8 {[%clk 0:00:40]} 22. g5 {[%clk 0:00:52]}  hxg5 {[%clk 0:00:36]} 23. Bxg5 {[%clk 0:00:47]}  e4 {[%clk 0:00:33]} 24. Ng6 {[%clk 0:00:46]}  Rf7 {[%clk 0:00:22]} 25. Qh4+ {[%clk 0:00:46]}  Kg8 {[%clk 0:00:22]} 26. Nc4 {[%clk 0:00:43]}  e3 {[%clk 0:00:20]} 27. Rf3 {[%clk 0:00:43]}  Qc6 {[%clk 0:00:16]} 28. Kg1 {[%clk 0:00:38]}  Nc3 {[%clk 0:00:14]} 29. Rh3 {[%clk 0:00:35]}  Ne2+ {[%clk 0:00:14]} 30. Kf1 {[%clk 0:00:34]}  d3 {[%clk 0:00:15]} 31. Qh7# {[%clk 0:00:33]} 1-0


[Site "https://www.chess.com"]

[Event "Titled Tuesday Blitz September 28 2021"]
[White "Khusnutdinov, Rustam"]
[Black "Lovkov, Roman"]
[WhiteFideId "13701703"]
[BlackFideId "4157389"]
[WhiteElo "2571"]
[BlackElo "2371"]
[Result "1-0"]
[Round "04"]
[TimeControl "180+1"]
[Date "2021.09.28"]
[WhiteClock "0:01:39"]
[BlackClock "0:01:01"]

1. d4 {[%clk 0:03:00]}  Nf6 {[%clk 0:02:59]} 2. c4 {[%clk 0:03:01]}  g6 {[%clk 0:03:00]} 3. Nc3 {[%clk 0:03:01]}  d5 {[%clk 0:03:01]} 4. Bg5 {[%clk 0:02:58]}  Ne4 {[%clk 0:03:00]} 5. Bh4 {[%clk 0:02:56]}  Nxc3 {[%clk 0:03:00]} 6. bxc3 {[%clk 0:02:57]}  dxc4 {[%clk 0:02:56]} 7. e3 {[%clk 0:02:58]}  Be6 {[%clk 0:02:48]} 8. Nf3 {[%clk 0:02:53]}  Bg7 {[%clk 0:02:37]} 9. Qb1 {[%clk 0:02:52]}  Nd7 {[%clk 0:02:28]} 10. Qxb7 {[%clk 0:02:39]}  c5 {[%clk 0:02:28]} 11. Ng5 {[%clk 0:02:30]}  Rb8 {[%clk 0:01:58]} 12. Nxe6 {[%clk 0:02:28]}  Qa5 {[%clk 0:01:43]} 13. Nxg7+ {[%clk 0:02:27]}  Kf8 {[%clk 0:01:44]} 14. Qxd7 {[%clk 0:02:27]}  Qxc3+ {[%clk 0:01:43]} 15. Ke2 {[%clk 0:02:25]}  Qxa1 {[%clk 0:01:17]} 16. Qxe7+ {[%clk 0:01:43]}  Kxg7 {[%clk 0:01:16]} 17. Qe5+ {[%clk 0:01:43]}  f6 {[%clk 0:01:03]} 18. Bxf6+ {[%clk 0:01:39]}  Kf7 {[%clk 0:01:01]} 19. Qe7+ {[%clk 0:01:39]} 1-0


[Site "https://www.chess.com"]

[Event "Titled Tuesday Blitz September 28 2021"]
[White "Korchmar, Vasiliy"]
[Black "Idrisov, Ildar F"]
[WhiteFideId "24131750"]
[BlackFideId "4151020"]
[WhiteElo "2370"]
[BlackElo "2209"]
[Result "1-0"]
[Round "04"]
[TimeControl "180+1"]
[Date "2021.09.28"]
[WhiteClock "0:00:03"]
[BlackClock "0:00:01"]

1. e4 {[%clk 0:03:00]}  e6 {[%clk 0:02:56]} 2. d4 {[%clk 0:03:00]}  d5 {[%clk 0:02:56]} 3. exd5 {[%clk 0:03:01]}  exd5 {[%clk 0:02:55]} 4. Nf3 {[%clk 0:03:01]}  Nf6 {[%clk 0:02:55]} 5. Bd3 {[%clk 0:02:50]}  Be7 {[%clk 0:02:52]} 6. Ne5 {[%clk 0:02:46]}  O-O {[%clk 0:02:51]} 7. O-O {[%clk 0:02:46]}  c5 {[%clk 0:02:47]} 8. c3 {[%clk 0:02:43]}  Nc6 {[%clk 0:02:47]} 9. Bf4 {[%clk 0:02:19]}  cxd4 {[%clk 0:02:46]} 10. Nxc6 {[%clk 0:02:19]}  bxc6 {[%clk 0:02:44]} 11. cxd4 {[%clk 0:02:19]}  Qb6 {[%clk 0:02:33]} 12. Nc3 {[%clk 0:01:50]}  Ba6 {[%clk 0:02:20]} 13. Na4 {[%clk 0:01:35]}  Qb7 {[%clk 0:02:20]} 14. Rc1 {[%clk 0:01:27]}  Bxd3 {[%clk 0:02:15]} 15. Qxd3 {[%clk 0:01:28]}  Rfe8 {[%clk 0:02:11]} 16. b3 {[%clk 0:01:26]}  Bf8 {[%clk 0:01:53]} 17. Rc2 {[%clk 0:01:19]}  Re6 {[%clk 0:01:52]} 18. h3 {[%clk 0:01:16]}  Rae8 {[%clk 0:01:50]} 19. Rfc1 {[%clk 0:01:02]}  Ba3 {[%clk 0:01:49]} 20. Rd1 {[%clk 0:01:01]}  Bf8 {[%clk 0:01:47]} 21. Rdc1 {[%clk 0:01:00]}  Ba3 {[%clk 0:01:45]} 22. Rb1 {[%clk 0:01:00]}  Bf8 {[%clk 0:01:32]} 23. Be5 {[%clk 0:00:58]}  Nd7 {[%clk 0:01:30]} 24. Bg3 {[%clk 0:00:59]}  Nb6 {[%clk 0:01:24]} 25. Nc5 {[%clk 0:00:59]}  Bxc5 {[%clk 0:01:23]} 26. dxc5 {[%clk 0:00:59]}  Nd7 {[%clk 0:01:21]} 27. Kh2 {[%clk 0:00:56]}  Nf6 {[%clk 0:01:13]} 28. b4 {[%clk 0:00:51]}  a6 {[%clk 0:01:11]} 29. a4 {[%clk 0:00:51]}  Re4 {[%clk 0:01:10]} 30. b5 {[%clk 0:00:49]}  Rxa4 {[%clk 0:01:06]} 31. b6 {[%clk 0:00:47]}  h6 {[%clk 0:00:56]} 32. Bc7 {[%clk 0:00:45]}  Ree4 {[%clk 0:00:52]} 33. f3 {[%clk 0:00:42]}  Re7 {[%clk 0:00:50]} 34. Re2 {[%clk 0:00:37]}  Rxc7 {[%clk 0:00:46]} 35. bxc7 {[%clk 0:00:35]}  Qxc7+ {[%clk 0:00:46]} 36. Kg1 {[%clk 0:00:34]}  Qf4 {[%clk 0:00:45]} 37. Re7 {[%clk 0:00:18]}  Rb4 {[%clk 0:00:21]} 38. Rbe1 {[%clk 0:00:16]}  Qd4+ {[%clk 0:00:20]} 39. Qxd4 {[%clk 0:00:15]}  Rxd4 {[%clk 0:00:20]} 40. Rc7 {[%clk 0:00:16]}  Rc4 {[%clk 0:00:20]} 41. Rxc6 {[%clk 0:00:15]}  a5 {[%clk 0:00:20]} 42. Re7 {[%clk 0:00:12]}  d4 {[%clk 0:00:17]} 43. Rcc7 {[%clk 0:00:04]}  Nd5 {[%clk 0:00:17]} 44. Rc8+ {[%clk 0:00:03]}  Kh7 {[%clk 0:00:17]} 45. Rd7 {[%clk 0:00:02]}  Nb4 {[%clk 0:00:14]} 46. Rxf7 {[%clk 0:00:01]}  d3 {[%clk 0:00:14]} 47. Rd7 {[%clk 0:00:01]}  Rc1+ {[%clk 0:00:10]} 48. Kh2 {[%clk 0:00:01]}  a4 {[%clk 0:00:11]} 49. c6 {[%clk 0:00:01]}  a3 {[%clk 0:00:11]} 50. Ra8 {[%clk 0:00:01]}  a2 {[%clk 0:00:10]} 51. c7 {[%clk 0:00:02]}  Kg6 {[%clk 0:00:06]} 52. Rd6+ {[%clk 0:00:02]}  Kf5 {[%clk 0:00:05]} 53. Rd4 {[%clk 0:00:03]}  Ke5 {[%clk 0:00:04]} 54. Rxb4 {[%clk 0:00:03]}  d2 {[%clk 0:00:01]} 55. Rb5+ {[%clk 0:00:03]} 1-0


[Site "https://www.chess.com"]

[Event "Titled Tuesday Blitz September 28 2021"]
[White "Krivonosov, Oleg"]
[Black "Tasev, Dejan"]
[WhiteFideId "11600349"]
[BlackFideId "936618"]
[WhiteElo "2469"]
[BlackElo "2253"]
[Result "1-0"]
[Round "04"]
[TimeControl "180+1"]
[Date "2021.09.28"]
[WhiteClock "0:02:38"]
[BlackClock "0:02:17"]

1. Nf3 {[%clk 0:03:00]}  Nf6 {[%clk 0:02:59]} 2. c4 {[%clk 0:03:00]}  g6 {[%clk 0:02:59]} 3. Nc3 {[%clk 0:03:00]}  Bg7 {[%clk 0:02:59]} 4. e4 {[%clk 0:03:00]}  d6 {[%clk 0:03:00]} 5. d4 {[%clk 0:03:01]}  O-O {[%clk 0:03:00]} 6. Be2 {[%clk 0:03:01]}  e5 {[%clk 0:03:00]} 7. dxe5 {[%clk 0:03:01]}  dxe5 {[%clk 0:03:00]} 8. Qxd8 {[%clk 0:03:01]}  Rxd8 {[%clk 0:03:00]} 9. Bg5 {[%clk 0:03:02]}  Re8 {[%clk 0:03:00]} 10. Nd5 {[%clk 0:03:02]}  Nxd5 {[%clk 0:02:58]} 11. cxd5 {[%clk 0:03:03]}  c6 {[%clk 0:02:58]} 12. Bc4 {[%clk 0:03:02]}  cxd5 {[%clk 0:02:57]} 13. Bxd5 {[%clk 0:03:03]}  Nc6 {[%clk 0:02:57]} 14. O-O-O {[%clk 0:03:02]}  Be6 {[%clk 0:02:57]} 15. Bxe6 {[%clk 0:03:01]}  Rxe6 {[%clk 0:02:57]} 16. Rd7 {[%clk 0:03:00]}  Rc8 {[%clk 0:02:56]} 17. Kb1 {[%clk 0:02:59]}  f6 {[%clk 0:02:55]} 18. Be3 {[%clk 0:02:58]}  b6 {[%clk 0:02:55]} 19. Rc1 {[%clk 0:02:55]}  Bf8 {[%clk 0:02:52]} 20. a3 {[%clk 0:02:53]}  Re7 {[%clk 0:02:51]} 21. Rd6 {[%clk 0:02:46]}  Rec7 {[%clk 0:02:26]} 22. Rxf6 {[%clk 0:02:43]}  Be7 {[%clk 0:02:23]} 23. Re6 {[%clk 0:02:41]}  Kf7 {[%clk 0:02:20]} 24. Rexc6 {[%clk 0:02:40]}  Rxc6 {[%clk 0:02:17]} 25. Rxc6 {[%clk 0:02:38]}  Rxc6 {[%clk 0:02:17]} 26. Nxe5+ {[%clk 0:02:38]} 1-0


[Site "https://www.chess.com"]